[Event "FIDE World Rapid Chess Championship 2021"]
[White "Najer, Evgeniy"]
[Black "Babazada, Khazar"]
[WhiteFideId "4118987"]
[BlackFideId "13413554"]
[WhiteElo "2565"]
[BlackElo "2170"]
[Result "1-0"]
[Round "13"]
[TimeControl "900+10"]
[Date "2021.12.28"]
[WhiteClock "0:00:36"]
[BlackClock "0:07:49"]

1. e4 {[%clk 0:15:00]}  Nf6 {[%clk 0:15:00]} 2. e5 {[%clk 0:15:00]}  Nd5 {[%clk 0:15:00]} 3. d4 {[%clk 0:15:00]}  d6 {[%clk 0:15:00]} 4. Nf3 {[%clk 0:15:00]}  Nb6 {[%clk 0:15:00]} 5. Be2 {[%clk 0:15:22]}  g6 {[%clk 0:15:47]} 6. h4 {[%clk 0:15:22]}  h5 {[%clk 0:15:47]} 7. O-O {[%clk 0:14:01]}  Bg7 {[%clk 0:15:42]} 8. Nc3 {[%clk 0:08:20]}  O-O {[%clk 0:15:48]} 9. Ne4 {[%clk 0:08:20]}  Bf5 {[%clk 0:15:48]} 10. Ng3 {[%clk 0:08:20]}  Qd7 {[%clk 0:15:26]} 11. Nxf5 {[%clk 0:05:19]}  Qxf5 {[%clk 0:15:26]} 12. Bd3 {[%clk 0:05:19]}  Qg4 {[%clk 0:15:26]} 13. Re1 {[%clk 0:05:19]}  dxe5 {[%clk 0:15:26]} 14. dxe5 {[%clk 0:05:19]}  Nc6 {[%clk 0:15:26]} 15. e6 {[%clk 0:05:19]}  f5 {[%clk 0:15:26]} 16. c3 {[%clk 0:05:19]}  Rad8 {[%clk 0:15:26]} 17. Qe2 {[%clk 0:05:19]}  Nd5 {[%clk 0:15:26]} 18. Bb5 {[%clk 0:05:19]}  Rd6 {[%clk 0:15:26]} 19. Bg5 {[%clk 0:05:19]}  Bf6 {[%clk 0:15:26]} 20. Bxc6 {[%clk 0:05:19]}  Rxc6 {[%clk 0:15:26]} 21. Rad1 {[%clk 0:05:19]}  Rd6 {[%clk 0:15:26]} 22. c4 {[%clk 0:05:19]}  Bxg5 {[%clk 0:15:26]} 23. cxd5 {[%clk 0:05:19]}  Bf6 {[%clk 0:15:26]} 24. Rd3 {[%clk 0:05:19]}  Rfd8 {[%clk 0:15:26]} 25. Red1 {[%clk 0:05:19]}  Qe4 {[%clk 0:15:26]} 26. Qd2 {[%clk 0:05:19]}  Kg7 {[%clk 0:15:26]} 27. Ng5 {[%clk 0:05:19]}  Qxh4 {[%clk 0:15:26]} 28. Nf7 {[%clk 0:05:19]}  f4 {[%clk 0:15:26]} 29. Rc1 {[%clk 0:01:34]}  Rf8 {[%clk 0:10:15]} 30. Rxc7 {[%clk 0:01:34]}  Rb6 {[%clk 0:10:15]} 31. b3 {[%clk 0:01:34]}  Qg4 {[%clk 0:10:15]} 32. Rf3 {[%clk 0:01:34]}  g5 {[%clk 0:09:03]} 33. Qe1 {[%clk 0:00:26]}  Qf5 {[%clk 0:09:03]} 34. d6 {[%clk 0:00:26]}  g4 {[%clk 0:09:03]} 35. Rfc3 {[%clk 0:00:26]}  Bxc3 {[%clk 0:09:03]} 36. Qxc3+ {[%clk 0:00:26]}  Qf6 {[%clk 0:09:03]} 37. Qxf6+ {[%clk 0:00:26]}  Kxf6 {[%clk 0:09:03]} 38. d7 {[%clk 0:00:26]}  Rxe6 {[%clk 0:08:27]} 39. Rc8 {[%clk 0:00:24]}  Re1+ {[%clk 0:08:27]} 40. Kh2 {[%clk 0:00:24]}  Rd1 {[%clk 0:08:27]} 41. Nd6 {[%clk 0:00:24]}  Ke6 {[%clk 0:08:27]} 42. Rxf8 {[%clk 0:00:24]}  Kxd7 {[%clk 0:08:27]} 43. Nxb7 {[%clk 0:00:24]}  e5 {[%clk 0:08:27]} 44. Rf5 {[%clk 0:00:24]}  Ke6 {[%clk 0:07:49]} 45. Rxh5 {[%clk 0:00:36]}  Rd2 {[%clk 0:07:49]} 46. Nc5+ {[%clk 0:00:36]}  Kd5 {[%clk 0:07:49]} 47. Nd7 {[%clk 0:00:36]}  Rxf2 {[%clk 0:07:49]} 48. Nxe5 {[%clk 0:00:36]}  g3+ {[%clk 0:07:49]} 49. Kh3 {[%clk 0:00:36]}  Rxa2 {[%clk 0:07:49]} 50. Nf3+ {[%clk 0:00:36]}  Ke6 {[%clk 0:07:49]} 51. Re5+ {[%clk 0:00:36]}  Kf6 {[%clk 0:07:49]} 52. Re4 {[%clk 0:00:36]}  Kf5 {[%clk 0:07:49]} 53. Re5+ {[%clk 0:00:36]}  Kf6 {[%clk 0:07:49]} 54. Re4 {[%clk 0:00:36]}  Kf5 {[%clk 0:07:49]} 55. Ra4 {[%clk 0:00:36]}  Rb2 {[%clk 0:07:49]} 56. Rxa7 {[%clk 0:00:36]} 1-0


[Site "http://www.Chess.com"]

[Event "FIDE World Rapid Chess Championship 2021"]
[White "Kozak, Adam"]
[Black "Movsesian, Sergei"]
[WhiteFideId "753246"]
[BlackFideId "310204"]
[WhiteElo "2552"]
[BlackElo "2667"]
[Result "1/2-1/2"]
[Round "13"]
[TimeControl "900+10"]
[Date "2021.12.28"]
[WhiteClock "0:00:54"]
[BlackClock "0:00:59"]

1. e4 {[%clk 0:15:00]}  c5 {[%clk 0:15:00]} 2. Nf3 {[%clk 0:15:00]}  e6 {[%clk 0:15:00]} 3. d4 {[%clk 0:15:00]}  cxd4 {[%clk 0:15:00]} 4. Nxd4 {[%clk 0:15:00]}  Nc6 {[%clk 0:15:00]} 5. Nc3 {[%clk 0:15:32]}  a6 {[%clk 0:15:47]} 6. g3 {[%clk 0:15:32]}  d6 {[%clk 0:15:47]} 7. Bg2 {[%clk 0:15:32]}  Bd7 {[%clk 0:15:47]} 8. O-O {[%clk 0:15:32]}  Be7 {[%clk 0:15:47]} 9. Nxc6 {[%clk 0:15:32]}  Bxc6 {[%clk 0:15:47]} 10. Bf4 {[%clk 0:15:32]}  Qc7 {[%clk 0:15:32]} 11. a4 {[%clk 0:14:21]}  Nf6 {[%clk 0:15:32]} 12. Re1 {[%clk 0:14:21]}  Nd7 {[%clk 0:15:32]} 13. a5 {[%clk 0:13:42]}  O-O {[%clk 0:13:53]} 14. Nd5 {[%clk 0:11:37]}  Bxd5 {[%clk 0:13:53]} 15. exd5 {[%clk 0:11:37]}  e5 {[%clk 0:13:53]} 16. Bd2 {[%clk 0:11:37]}  Rac8 {[%clk 0:13:53]} 17. Rc1 {[%clk 0:11:37]}  f5 {[%clk 0:12:38]} 18. b4 {[%clk 0:10:27]}  e4 {[%clk 0:12:06]} 19. f3 {[%clk 0:08:51]}  Bf6 {[%clk 0:12:06]} 20. fxe4 {[%clk 0:08:26]}  Bb2 {[%clk 0:09:15]} 21. Rb1 {[%clk 0:08:26]}  Bd4+ {[%clk 0:09:15]} 22. Kh1 {[%clk 0:08:26]}  Qxc2 {[%clk 0:09:15]} 23. Bf4 {[%clk 0:07:52]}  Be5 {[%clk 0:07:51]} 24. Qxc2 {[%clk 0:05:44]}  Rxc2 {[%clk 0:07:51]} 25. Bh3 {[%clk 0:05:44]}  g5 {[%clk 0:06:53]} 26. Bxg5 {[%clk 0:05:29]}  fxe4 {[%clk 0:03:11]} 27. Rf1 {[%clk 0:05:29]}  Rxf1+ {[%clk 0:03:20]} 28. Rxf1 {[%clk 0:02:15]}  Nf8 {[%clk 0:03:20]} 29. Be7 {[%clk 0:02:15]}  Ng6 {[%clk 0:03:20]} 30. Be6+ {[%clk 0:02:15]}  Kh8 {[%clk 0:01:44]} 31. Bg5 {[%clk 0:01:34]}  Bd4 {[%clk 0:01:44]} 32. Rd1 {[%clk 0:01:34]}  Bg7 {[%clk 0:00:39]} 33. Bf5 {[%clk 0:00:19]}  Rc4 {[%clk 0:00:39]} 34. Rc1 {[%clk 0:00:19]}  Rxc1+ {[%clk 0:00:39]} 35. Bxc1 {[%clk 0:00:19]}  Bc3 {[%clk 0:00:39]} 36. Bc8 {[%clk 0:00:19]}  Bxb4 {[%clk 0:00:39]} 37. Bxb7 {[%clk 0:00:19]}  Bxa5 {[%clk 0:00:39]} 38. Bxa6 {[%clk 0:00:19]}  Ne7 {[%clk 0:00:39]} 39. Bc4 {[%clk 0:00:19]}  Kg7 {[%clk 0:00:39]} 40. Kg2 {[%clk 0:00:19]}  Kf6 {[%clk 0:00:39]} 41. Bb2+ {[%clk 0:00:19]}  Kf5 {[%clk 0:00:39]} 42. Bc1 {[%clk 0:00:21]}  Bc3 {[%clk 0:00:26]} 43. Bf4 {[%clk 0:00:21]}  Be5 {[%clk 0:00:26]} 44. Be3 {[%clk 0:00:21]}  Bc3 {[%clk 0:00:26]} 45. Bf4 {[%clk 0:00:21]}  Bb4 {[%clk 0:00:26]} 46. h3 {[%clk 0:00:21]}  Ng6 {[%clk 0:00:26]} 47. Be2 {[%clk 0:00:21]}  Nxf4+ {[%clk 0:00:26]} 48. gxf4 {[%clk 0:00:21]}  Kxf4 {[%clk 0:00:26]} 49. Bg4 {[%clk 0:00:21]}  Be1 {[%clk 0:00:26]} 50. Kf1 {[%clk 0:00:21]}  Bh4 {[%clk 0:00:26]} 51. Ke2 {[%clk 0:00:21]}  Ke5 {[%clk 0:00:26]} 52. Be6 {[%clk 0:00:21]}  h6 {[%clk 0:00:59]} 53. Bg8 {[%clk 0:00:54]} 1/2-1/2


[Site "http://www.Chess.com"]

[Event "FIDE World Rapid Chess Championship 2021"]
[White "Demchenko, Anton"]
[Black "Vokhidov, Shamsiddin"]
[WhiteFideId "4160258"]
[BlackFideId "14204223"]
[WhiteElo "2666"]
[BlackElo "2546"]
[Result "1/2-1/2"]
[Round "13"]
[TimeControl "900+10"]
[Date "2021.12.28"]
[WhiteClock "0:01:42"]
[BlackClock "0:01:26"]

1. e4 {[%clk 0:15:00]}  c5 {[%clk 0:15:00]} 2. Nf3 {[%clk 0:15:00]}  d6 {[%clk 0:15:00]} 3. d4 {[%clk 0:15:00]}  cxd4 {[%clk 0:15:00]} 4. Qxd4 {[%clk 0:15:00]}  Nc6 {[%clk 0:15:00]} 5. Qe3 {[%clk 0:15:00]}  g6 {[%clk 0:15:00]} 6. h3 {[%clk 0:15:00]}  Bg7 {[%clk 0:15:00]} 7. Nc3 {[%clk 0:16:19]}  Nf6 {[%clk 0:15:54]} 8. Bc4 {[%clk 0:16:19]}  O-O {[%clk 0:15:54]} 9. O-O {[%clk 0:16:19]}  Nd7 {[%clk 0:15:54]} 10. Rd1 {[%clk 0:16:19]}  Nb6 {[%clk 0:15:54]} 11. Bb3 {[%clk 0:16:19]}  Bd7 {[%clk 0:15:54]} 12. Qf4 {[%clk 0:14:27]}  Ne5 {[%clk 0:15:31]} 13. Nxe5 {[%clk 0:14:27]}  Bxe5 {[%clk 0:10:37]} 14. Qh4 {[%clk 0:14:27]}  Bf6 {[%clk 0:10:37]} 15. Bg5 {[%clk 0:14:27]}  Bxg5 {[%clk 0:10:37]} 16. Qxg5 {[%clk 0:14:27]}  Rc8 {[%clk 0:10:37]} 17. Rd4 {[%clk 0:12:15]}  Rc5 {[%clk 0:11:03]} 18. Qh6 {[%clk 0:12:15]}  Rh5 {[%clk 0:11:03]} 19. Qe3 {[%clk 0:12:15]}  Qc7 {[%clk 0:11:03]} 20. Nd5 {[%clk 0:12:15]}  Nxd5 {[%clk 0:11:03]} 21. exd5 {[%clk 0:12:15]}  Re5 {[%clk 0:11:03]} 22. Qh6 {[%clk 0:12:15]}  Rh5 {[%clk 0:11:03]} 23. Qd2 {[%clk 0:12:15]}  Re8 {[%clk 0:11:03]} 24. c3 {[%clk 0:12:15]}  e5 {[%clk 0:11:03]} 25. dxe6 {[%clk 0:12:15]}  Bxe6 {[%clk 0:11:03]} 26. Rxd6 {[%clk 0:12:15]}  Bxb3 {[%clk 0:11:03]} 27. axb3 {[%clk 0:12:15]}  Rhe5 {[%clk 0:11:03]} 28. Rd7 {[%clk 0:12:15]}  Re1+ {[%clk 0:11:03]} 29. Rxe1 {[%clk 0:12:15]}  Rxe1+ {[%clk 0:11:03]} 30. Qxe1 {[%clk 0:12:15]}  Qxd7 {[%clk 0:11:03]} 31. c4 {[%clk 0:12:15]}  h5 {[%clk 0:06:39]} 32. g3 {[%clk 0:05:50]}  Qd4 {[%clk 0:05:57]} 33. Qc3 {[%clk 0:02:55]}  Qe4 {[%clk 0:04:11]} 34. h4 {[%clk 0:02:55]}  a6 {[%clk 0:04:11]} 35. c5 {[%clk 0:02:55]}  Qd5 {[%clk 0:04:11]} 36. b4 {[%clk 0:02:55]}  Qe4 {[%clk 0:04:11]} 37. b3 {[%clk 0:02:55]}  Qd5 {[%clk 0:04:11]} 38. Qe3 {[%clk 0:02:34]}  Qc6 {[%clk 0:03:07]} 39. Qd3 {[%clk 0:02:34]}  Kg7 {[%clk 0:03:07]} 40. Kf1 {[%clk 0:02:34]}  Kg8 {[%clk 0:03:07]} 41. Qd8+ {[%clk 0:02:34]}  Kh7 {[%clk 0:03:07]} 42. Qd4 {[%clk 0:02:34]}  Kg8 {[%clk 0:03:07]} 43. Qc4 {[%clk 0:02:34]}  Qf3 {[%clk 0:02:26]} 44. Ke1 {[%clk 0:02:25]}  Kf8 {[%clk 0:02:26]} 45. b5 {[%clk 0:02:25]}  axb5 {[%clk 0:02:26]} 46. Qxb5 {[%clk 0:02:25]}  Qe4+ {[%clk 0:02:26]} 47. Kf1 {[%clk 0:01:42]}  Qh1+ {[%clk 0:01:26]} 48. Ke2 {[%clk 0:01:42]}  Qe4+ {[%clk 0:01:26]} 49. Kd2 {[%clk 0:01:42]}  Qd4+ {[%clk 0:01:26]} 50. Ke1 {[%clk 0:01:42]}  Qe4+ {[%clk 0:01:26]} 51. Kd1 {[%clk 0:01:42]}  Qd4+ {[%clk 0:01:26]} 52. Ke2 {[%clk 0:01:42]}  Qe4+ {[%clk 0:01:26]} 1/2-1/2


[Site "http://www.Chess.com"]

[Event "FIDE World Rapid Chess Championship 2021"]
[White "Antipov, Mikhail Al."]
[Black "Indjic, Aleksandar"]
[WhiteFideId "4107012"]
[BlackFideId "911925"]
[WhiteElo "2644"]
[BlackElo "2544"]
[Result "1-0"]
[Round "13"]
[TimeControl "900+10"]
[Date "2021.12.28"]
[WhiteClock "0:00:37"]
[BlackClock "0:00:11"]

1. e4 {[%clk 0:15:00]}  e5 {[%clk 0:15:00]} 2. Nf3 {[%clk 0:15:00]}  Nf6 {[%clk 0:15:00]} 3. Nxe5 {[%clk 0:15:00]}  d6 {[%clk 0:15:00]} 4. Nd3 {[%clk 0:15:00]}  Nxe4 {[%clk 0:15:00]} 5. Qe2 {[%clk 0:16:01]}  Qe7 {[%clk 0:15:45]} 6. Nf4 {[%clk 0:16:01]}  Nf6 {[%clk 0:15:45]} 7. d4 {[%clk 0:16:01]}  Nc6 {[%clk 0:15:45]} 8. Be3 {[%clk 0:16:01]}  g5 {[%clk 0:15:45]} 9. Nd3 {[%clk 0:16:01]}  h6 {[%clk 0:15:45]} 10. Nc3 {[%clk 0:16:01]}  Bg7 {[%clk 0:13:39]} 11. h4 {[%clk 0:16:11]}  Bf5 {[%clk 0:13:39]} 12. d5 {[%clk 0:15:48]}  Bxd3 {[%clk 0:11:19]} 13. Qxd3 {[%clk 0:15:48]}  Ne5 {[%clk 0:11:19]} 14. Qf5 {[%clk 0:15:48]}  Nfg4 {[%clk 0:11:19]} 15. Rh3 {[%clk 0:15:48]}  Qd7 {[%clk 0:11:06]} 16. Qxd7+ {[%clk 0:14:40]}  Kxd7 {[%clk 0:11:06]} 17. Bd2 {[%clk 0:14:40]}  Rae8 {[%clk 0:11:06]} 18. Be2 {[%clk 0:14:40]}  Nc4 {[%clk 0:10:29]} 19. Bc1 {[%clk 0:14:14]}  f5 {[%clk 0:10:29]} 20. Kf1 {[%clk 0:14:14]}  Bxc3 {[%clk 0:07:32]} 21. bxc3 {[%clk 0:13:33]}  Rxe2 {[%clk 0:07:32]} 22. Kxe2 {[%clk 0:13:33]}  Re8+ {[%clk 0:07:32]} 23. Kf1 {[%clk 0:13:40]}  f4 {[%clk 0:04:59]} 24. hxg5 {[%clk 0:13:40]}  hxg5 {[%clk 0:04:59]} 25. Rb1 {[%clk 0:13:40]}  b6 {[%clk 0:04:59]} 26. Rh5 {[%clk 0:13:40]}  Nce5 {[%clk 0:05:25]} 27. f3 {[%clk 0:11:41]}  Nf6 {[%clk 0:05:25]} 28. Rxg5 {[%clk 0:11:41]}  Rh8 {[%clk 0:05:25]} 29. Kg1 {[%clk 0:11:41]}  Nxd5 {[%clk 0:05:25]} 30. Bd2 {[%clk 0:10:32]}  Kc6 {[%clk 0:04:40]} 31. Rd1 {[%clk 0:10:32]}  b5 {[%clk 0:04:40]} 32. Re1 {[%clk 0:09:21]}  Nc4 {[%clk 0:03:36]} 33. Rxd5 {[%clk 0:09:21]}  Kxd5 {[%clk 0:03:36]} 34. Bxf4 {[%clk 0:09:21]}  Na3 {[%clk 0:03:36]} 35. Bc1 {[%clk 0:09:21]}  Nc4 {[%clk 0:03:27]} 36. Re7 {[%clk 0:08:17]}  Kc6 {[%clk 0:03:27]} 37. f4 {[%clk 0:08:17]}  Nb6 {[%clk 0:03:27]} 38. Re2 {[%clk 0:06:45]}  Nd5 {[%clk 0:02:27]} 39. Bd2 {[%clk 0:06:45]}  Nf6 {[%clk 0:02:27]} 40. Kf2 {[%clk 0:06:45]}  Kd7 {[%clk 0:02:27]} 41. Kf3 {[%clk 0:05:21]}  d5 {[%clk 0:01:15]} 42. g4 {[%clk 0:05:21]}  Ne4 {[%clk 0:01:15]} 43. g5 {[%clk 0:05:21]}  Rh1 {[%clk 0:01:15]} 44. Rxe4 {[%clk 0:04:52]}  dxe4+ {[%clk 0:00:11]} 45. Kxe4 {[%clk 0:04:52]}  Rh2 {[%clk 0:00:11]} 46. Be3 {[%clk 0:04:52]}  Rxc2 {[%clk 0:00:11]} 47. g6 {[%clk 0:04:52]}  Ke8 {[%clk 0:00:11]} 48. f5 {[%clk 0:03:03]}  Rxc3 {[%clk 0:00:47]} 49. Bxa7 {[%clk 0:03:03]}  Rg3 {[%clk 0:00:47]} 50. Bc5 {[%clk 0:00:32]}  b4 {[%clk 0:00:19]} 51. Ke5 {[%clk 0:00:32]}  Rc3 {[%clk 0:00:19]} 52. Bxb4 {[%clk 0:00:32]}  Rc4 {[%clk 0:00:19]} 53. a3 {[%clk 0:00:32]}  c5 {[%clk 0:00:19]} 54. Bd2 {[%clk 0:00:32]}  Rg4 {[%clk 0:00:19]} 55. Be3 {[%clk 0:00:32]}  c4 {[%clk 0:00:19]} 56. Bd4 {[%clk 0:00:32]}  Kf8 {[%clk 0:00:19]} 57. a4 {[%clk 0:00:32]}  c3 {[%clk 0:00:19]} 58. Bxc3 {[%clk 0:00:32]}  Rxa4 {[%clk 0:00:19]} 59. Bd4 {[%clk 0:00:32]}  Ra5+ {[%clk 0:00:19]} 60. Kf6 {[%clk 0:00:32]}  Kg8 {[%clk 0:00:49]} 61. Ke6 {[%clk 0:00:14]}  Ra6+ {[%clk 0:00:49]} 62. Kd5 {[%clk 0:00:14]}  Ra5+ {[%clk 0:00:49]} 63. Ke4 {[%clk 0:00:14]}  Rb5 {[%clk 0:00:49]} 64. Bc3 {[%clk 0:00:14]}  Rc5 {[%clk 0:00:49]} 65. Bb2 {[%clk 0:00:14]}  Rc7 {[%clk 0:00:49]} 66. f6 {[%clk 0:00:14]}  Ra7 {[%clk 0:00:49]} 67. Bc3 {[%clk 0:00:14]}  Rb7 {[%clk 0:00:49]} 68. Bd4 {[%clk 0:00:14]}  Rd7 {[%clk 0:00:49]} 69. Ke5 {[%clk 0:00:14]}  Rb7 {[%clk 0:00:11]} 70. Ke6 {[%clk 0:00:37]}  Rg7 {[%clk 0:00:11]} 71. f7+ {[%clk 0:00:37]}  Rxf7 {[%clk 0:00:11]} 72. gxf7+ {[%clk 0:00:37]}  Kh7 {[%clk 0:00:11]} 73. f8=Q {[%clk 0:00:37]} 1-0


[Site "http://www.Chess.com"]

[Event "FIDE World Rapid Chess Championship 2021"]
[White "Predke, Alexandr"]
[Black "Gagunashvili, Merab"]
[WhiteFideId "24107581"]
[BlackFideId "13601652"]
[WhiteElo "2630"]
[BlackElo "2538"]
[Result "1-0"]
[Round "13"]
[TimeControl "900+10"]
[Date "2021.12.28"]
[WhiteClock "0:02:52"]
[BlackClock "0:03:29"]

1. d4 {[%clk 0:15:00]}  d5 {[%clk 0:15:00]} 2. c4 {[%clk 0:15:00]}  c6 {[%clk 0:15:00]} 3. Nf3 {[%clk 0:15:00]}  Nf6 {[%clk 0:15:00]} 4. Qc2 {[%clk 0:15:00]}  e6 {[%clk 0:15:43]} 5. Bg5 {[%clk 0:15:31]}  Be7 {[%clk 0:15:43]} 6. e3 {[%clk 0:15:31]}  Nbd7 {[%clk 0:15:43]} 7. Bd3 {[%clk 0:15:31]}  O-O {[%clk 0:15:43]} 8. O-O {[%clk 0:15:31]}  h6 {[%clk 0:15:43]} 9. Bh4 {[%clk 0:15:31]}  a6 {[%clk 0:15:43]} 10. Rd1 {[%clk 0:15:29]}  b6 {[%clk 0:13:30]} 11. Nc3 {[%clk 0:15:29]}  Bb7 {[%clk 0:13:30]} 12. a3 {[%clk 0:12:12]}  c5 {[%clk 0:14:43]} 13. cxd5 {[%clk 0:12:12]}  Nxd5 {[%clk 0:14:43]} 14. Bg3 {[%clk 0:12:12]}  cxd4 {[%clk 0:13:12]} 15. Nxd5 {[%clk 0:11:27]}  Bxd5 {[%clk 0:13:12]} 16. Nxd4 {[%clk 0:11:27]}  Nc5 {[%clk 0:10:32]} 17. Bh7+ {[%clk 0:11:39]}  Kh8 {[%clk 0:07:50]} 18. e4 {[%clk 0:11:39]}  Kxh7 {[%clk 0:07:50]} 19. exd5+ {[%clk 0:11:39]}  Kh8 {[%clk 0:07:50]} 20. b4 {[%clk 0:11:39]}  Nb7 {[%clk 0:07:50]} 21. Nc6 {[%clk 0:09:22]}  Qd7 {[%clk 0:08:17]} 22. dxe6 {[%clk 0:09:22]}  Qc8 {[%clk 0:08:17]} 23. Rd7 {[%clk 0:09:22]}  Bf6 {[%clk 0:08:08]} 24. Rad1 {[%clk 0:07:26]}  Re8 {[%clk 0:08:08]} 25. Nd4 {[%clk 0:07:34]}  Qxc2 {[%clk 0:05:55]} 26. Nxc2 {[%clk 0:04:23]}  Nd8 {[%clk 0:05:55]} 27. exf7 {[%clk 0:04:23]}  Rf8 {[%clk 0:05:55]} 28. Ne3 {[%clk 0:04:23]}  Rxf7 {[%clk 0:04:33]} 29. R7d6 {[%clk 0:03:45]}  b5 {[%clk 0:04:33]} 30. Ng4 {[%clk 0:03:45]}  Be7 {[%clk 0:04:33]} 31. Rd7 {[%clk 0:03:45]}  Bg5 {[%clk 0:03:29]} 32. f4 {[%clk 0:02:52]}  Rxd7 {[%clk 0:03:29]} 33. Rxd7 {[%clk 0:02:52]}  h5 {[%clk 0:03:29]} 34. fxg5 {[%clk 0:02:52]}  hxg4 {[%clk 0:03:29]} 35. Be5 {[%clk 0:02:52]}  Ne6 {[%clk 0:03:29]} 36. Re7 {[%clk 0:02:52]}  Nxg5 {[%clk 0:03:29]} 37. Rxg7 {[%clk 0:02:52]} 1-0


[Site "http://www.Chess.com"]

[Event "FIDE World Rapid Chess Championship 2021"]
[White "Ivic, Velimir"]
[Black "Santos Latasa, Jaime"]
[WhiteFideId "950122"]
[BlackFideId "2293307"]
[WhiteElo "2357"]
[BlackElo "2618"]
[Result "1/2-1/2"]
[Round "13"]
[TimeControl "900+10"]
[Date "2021.12.28"]
[WhiteClock "0:00:57"]
[BlackClock "0:02:03"]

1. d4 {[%clk 0:15:00]}  Nf6 {[%clk 0:15:00]} 2. Nf3 {[%clk 0:15:00]}  d5 {[%clk 0:15:00]} 3. Bf4 {[%clk 0:15:00]}  e6 {[%clk 0:15:00]} 4. e3 {[%clk 0:15:00]}  Bd6 {[%clk 0:15:00]} 5. Nbd2 {[%clk 0:15:31]}  O-O {[%clk 0:15:47]} 6. Ne5 {[%clk 0:15:31]}  c5 {[%clk 0:15:47]} 7. c3 {[%clk 0:15:31]}  c4 {[%clk 0:15:47]} 8. g4 {[%clk 0:15:31]}  Qc7 {[%clk 0:15:47]} 9. g5 {[%clk 0:15:31]}  Ne8 {[%clk 0:15:47]} 10. Rg1 {[%clk 0:13:41]}  Nc6 {[%clk 0:15:53]} 11. Ndf3 {[%clk 0:13:41]}  Kh8 {[%clk 0:15:53]} 12. Qd2 {[%clk 0:13:47]}  Ne7 {[%clk 0:15:37]} 13. h4 {[%clk 0:13:47]}  Nf5 {[%clk 0:15:37]} 14. h5 {[%clk 0:10:07]}  f6 {[%clk 0:14:36]} 15. Ng4 {[%clk 0:10:07]}  Bxf4 {[%clk 0:14:36]} 16. exf4 {[%clk 0:10:07]}  Ned6 {[%clk 0:14:36]} 17. h6 {[%clk 0:10:07]}  Ne4 {[%clk 0:14:36]} 18. hxg7+ {[%clk 0:09:22]}  Nxg7 {[%clk 0:13:33]} 19. Qe2 {[%clk 0:09:22]}  Nh5 {[%clk 0:13:33]} 20. Nxf6 {[%clk 0:09:22]}  Nhxf6 {[%clk 0:13:33]} 21. gxf6 {[%clk 0:09:22]}  Qxf4 {[%clk 0:13:33]} 22. Ne5 {[%clk 0:08:03]}  Nxf6 {[%clk 0:13:13]} 23. Rh1 {[%clk 0:08:03]}  Kg7 {[%clk 0:13:13]} 24. Rg1+ {[%clk 0:06:07]}  Kh8 {[%clk 0:12:44]} 25. Rh1 {[%clk 0:06:07]}  Kg7 {[%clk 0:12:44]} 26. f3 {[%clk 0:06:07]}  Rg8 {[%clk 0:12:44]} 27. b3 {[%clk 0:05:03]}  b5 {[%clk 0:12:08]} 28. Qf2 {[%clk 0:03:43]}  Kf8 {[%clk 0:11:05]} 29. Rb1 {[%clk 0:03:43]}  Bd7 {[%clk 0:11:05]} 30. bxc4 {[%clk 0:03:11]}  bxc4 {[%clk 0:08:54]} 31. Rh4 {[%clk 0:03:11]}  Qg5 {[%clk 0:08:54]} 32. Rg4 {[%clk 0:01:24]}  Qf5 {[%clk 0:08:28]} 33. Nxd7+ {[%clk 0:01:24]}  Nxd7 {[%clk 0:08:28]} 34. Rxg8+ {[%clk 0:01:24]}  Kxg8 {[%clk 0:07:31]} 35. Rb7 {[%clk 0:00:24]}  Rd8 {[%clk 0:07:31]} 36. Qg3+ {[%clk 0:00:24]}  Kh8 {[%clk 0:07:31]} 37. Qd6 {[%clk 0:00:19]}  Qxf3 {[%clk 0:05:03]} 38. Rxd7 {[%clk 0:00:19]}  Rxd7 {[%clk 0:05:03]} 39. Qxd7 {[%clk 0:00:19]}  Qxc3+ {[%clk 0:05:03]} 40. Ke2 {[%clk 0:00:19]}  Qd3+ {[%clk 0:05:03]} 41. Ke1 {[%clk 0:00:19]}  Qg3+ {[%clk 0:05:03]} 42. Kd1 {[%clk 0:00:19]}  Qg4+ {[%clk 0:05:03]} 43. Ke1 {[%clk 0:00:11]}  Qh4+ {[%clk 0:04:10]} 44. Ke2 {[%clk 0:00:11]}  Qe4+ {[%clk 0:04:10]} 45. Kd2 {[%clk 0:00:11]}  Qxd4+ {[%clk 0:04:10]} 46. Ke1 {[%clk 0:00:11]}  Qc3+ {[%clk 0:04:10]} 47. Kd1 {[%clk 0:00:11]}  Qa1+ {[%clk 0:04:10]} 48. Ke2 {[%clk 0:00:11]}  Qxa2+ {[%clk 0:04:10]} 49. Kf3 {[%clk 0:00:11]}  Qa3+ {[%clk 0:04:10]} 50. Kg2 {[%clk 0:00:28]}  Qb2+ {[%clk 0:03:55]} 51. Kh1 {[%clk 0:00:28]}  Qf6 {[%clk 0:03:55]} 52. Bh3 {[%clk 0:00:28]}  c3 {[%clk 0:03:55]} 53. Bxe6 {[%clk 0:00:28]}  c2 {[%clk 0:03:55]} 54. Qc8+ {[%clk 0:00:28]}  Kg7 {[%clk 0:03:55]} 55. Qc7+ {[%clk 0:00:28]}  Kh6 {[%clk 0:02:03]} 56. Qh2+ {[%clk 0:00:57]}  Kg7 {[%clk 0:02:03]} 57. Qc7+ {[%clk 0:00:57]}  Kh6 {[%clk 0:02:03]} 58. Qh2+ {[%clk 0:00:57]}  Kg7 {[%clk 0:02:03]} 1/2-1/2


[Site "http://www.Chess.com"]